[Event "German Bundesliga 2021-22"]
[Site "Germany"]
[Date "2022.03.05"]
[Round "1.7"]
[White "Meessen, Rudolf"]
[Black "Meshkovs, Nikita"]
[Result "0-1"]
[ECO "D00"]
[WhiteElo "2239"]
[BlackElo "2559"]
[Annotator "ChessBase"]
[PlyCount "74"]
[EventDate "2022.03.05"]
[EventType "team-tourn"]
[EventCountry "GER"]
[SourceTitle "playchess.com"]
[Source "ChessBase"]
[SourceQuality "1"]
[TimeControl "40/5400+30:1800+30"]

1. d4 {[%emt 0:03:47]} Nf6 {[%emt 0:00:00]} 2. Nc3 {[%emt 0:00:07]} d5 {[%emt 0:00:00]} 3. Bf4 {[%emt 0:00:04]} e6 {[%emt 0:00:00]} 4. Nb5 {[%emt 0:00:06]} Na6 {[%emt 0:00:00]} 5. e3 {[%emt 0:00:16]} c6 {[%emt 0:00:00]} 6. Nc3 {[%emt 0:00:07]} Nc7 {[%emt 0:00:00]} 7. Bd3 {[%emt 0:03:38]} Be7 {[%emt 0:04:18]} 8. Nf3 {[%emt 0:12:32]} O-O {[%emt 0:06:16]} 9. Ne5 {[%emt 0:00:07]} Nce8 {[%emt 0:00:10]} 10. Qf3 {[%emt 0:03:16]} Nd7 {[%emt 0:07:52]} 11. Qh3 {[%emt 0:01:10]} f5 {[%emt 0:02:48]} 12. g4 {[%emt 0:00:41]} Nd6 {[%emt 0:04:32]} 13. Rg1 {[%emt 0:02:58]} Nxe5 {[%emt 0:23:11]} 14. Bxe5 {[%emt 0:06:53]} Bf6 {[%emt 0:06:14]} 15. f4 {[%emt 0:08:07]} Ne4 {[%emt 0:13:24]} 16. Nxe4 {[%emt 0:10:47]} fxe4 {[%emt 0:01:28]} 17. Be2 {[%emt 0:03:12]} Bxe5 {[%emt 0:01:16]} 18. fxe5 {[%emt 0:00:06]} Qa5+ {[%emt 0:01:29]} 19. c3 {[%emt 0:00:45]} c5 {[%emt 0:00:01]} 20. g5 {[%emt 0:01:26]} b5 {[%emt 0:04:59]} 21. g6 {[%emt 0:14:18]} h6 {[%emt 0:00:54]} 22. Rf1 {[%emt 0:03:37]} Bd7 {[%emt 0:00:36]} 23. Bg4 {[%emt 0:01:25]} b4 {[%emt 0:06:23]} 24. Bxe6+ {[%emt 0:01:19]} Kh8 {[%emt 0:00:01]} 25. Rf7 {[%emt 0:16:41]} Bxe6 {[%emt 0:01:31]} 26. Qxe6 {[%emt 0:00:12]} bxc3 {[%emt 0:00:05]} 27. Kf2 {[%emt 0:04:33]} cxb2 {[%emt 0:00:34]} 28. Rf1 {[%emt 0:00:14]} b1=Q {[%emt 0:01:48]} 29. Rxb1 {[%emt 0:00:16]} Qxa2+ {[%emt 0:00:03]} 30. Kg3 {[%emt 0:00:24]} Qxb1 {[%emt 0:00:02]} 31. Qf5 {[%emt 0:01:30]} Qg1+ {[%emt 0:00:36]} 32. Kh3 {[%emt 0:00:55]} Qxe3+ {[%emt 0:00:08]} 33. Kh4 {[%emt 0:00:29]} Qg5+ {[%emt 0:00:18]} 34. Qxg5 {[%emt 0:00:06]} hxg5+ {[%emt 0:00:03]} 35. Kxg5 {[%emt 0:00:36]} e3 {[%emt 0:00:23]} 36. e6 {[%emt 0:00:06]} e2 {[%emt 0:00:02]} 37. e7 {[%emt 0:00:05]} Rfe8 {[%emt 0:00:02]} 0-1

[Event "German Bundesliga 2021-22"]
[Site "Germany"]
[Date "2022.03.05"]
[Round "1.7"]
[White "Mueller, Werner"]
[Black "Beikert, Guenther"]
[Result "1-0"]
[ECO "B50"]
[WhiteElo "2218"]
[BlackElo "2369"]
[Annotator "NA"]
[PlyCount "72"]
[EventDate "2022.03.05"]
[EventType "team-tourn"]
[EventCountry "GER"]
[SourceTitle "playchess.com"]
[Source "ChessBase"]
[SourceQuality "1"]
[TimeControl "40/5400+30:1800+30"]

1. e4 {[%emt 0:00:00]} c5 {[%emt 0:00:00]} 2. Nf3 {[%emt 0:00:00]} d6 {[%emt 0:00:00]} 3. d3 {[%emt 0:00:00]} Nc6 {[%emt 0:00:00]} 4. g3 {[%emt 0:00:00]} g6 {[%emt 0:00:00]} 5. Bg2 {[%emt 0:00:00]} Bg7 {[%emt 0:00:00]} 6. O-O {[%emt 0:00:00]} e5 {[%emt 0:00:00]} 7. Nbd2 {[%emt 0:00:00]} Nge7 {[%emt 0:00:00]} 8. a4 {[%emt 0:08:47]} O-O {[%emt 0:00:00]} 9. Nc4 {[%emt 0:01:49]} h6 {[%emt 0:00:00]} 10. Nfd2 {[%emt 0:16:20]} Be6 {[%emt 0:03:15]} 11. f4 {[%emt 0:05:31]} Qd7 {[%emt 0:07:15]} 12. fxe5 {[%emt 0:15:13]} dxe5 {[%emt 0:01:26]} 13. Nb3 {[%emt 0:00:23]} b6 {[%emt 0:03:39]} 14. a5 {[%emt 0:03:03]} Rab8 {[%emt 0:00:32]} 15. axb6 {[%emt 0:02:47]} axb6 {[%emt 0:03:41]} 16. Bd2 {[%emt 0:09:22]} Nd4 {[%emt 0:14:47]} 17. Nxd4 {[%emt 0:01:00]} Qxd4+ {[%emt 0:00:23]} 18. Be3 {[%emt 0:01:30]} Qd8 {[%emt 0:00:07]} 19. Qe2 {[%emt 0:07:16]} Nc6 {[%emt 0:06:07]} 20. Ra6 {[%emt 0:06:35]} Qc7 {[%emt 0:08:01]} 21. Rfa1 {[%emt 0:00:37]} Rfd8 {[%emt 0:01:51]} 22. Bf3 {[%emt 0:02:25]} b5 23. Na5 {[%emt 0:07:58]} Nb4 {[%emt 0:11:52]} 24. Rxe6 {[%emt 0:04:35]} fxe6 {[%emt 0:00:07]} 25. Nb3 {[%emt 0:00:48]} Bf8 {[%emt 0:01:06]} 26. Bg4 {[%emt 0:01:26]} Rb6 {[%emt 0:01:11]} 27. Qf2 {[%emt 0:00:34]} Rc6 {[%emt 0:20:48]} 28. Rf1 {[%emt 0:03:26]} Qe7 {[%emt 0:05:05]} 29. Qd2 {[%emt 0:00:59]} c4 {[%emt 0:04:02]} 30. Na5 {[%emt 0:00:49]} Ra6 {[%emt 0:00:13]} 31. Rxf8+ {[%emt 0:00:48]} Rxf8 {[%emt 0:01:00]} 32. Nb7 {[%emt 0:00:24]} Qxb7 {[%emt 0:02:49]} 33. Qxb4 {[%emt 0:00:07]} Ra1+ {[%emt 0:00:39]} 34. Kg2 {[%emt 0:00:08]} Qf7 {[%emt 0:00:21]} 35. Be2 {[%emt 0:00:14]} cxd3 {[%emt 0:01:39]} 36. cxd3 {[%emt 0:00:06]} Raa8 1-0

[Event "German Bundesliga 2021-22"]
[Site "Germany"]
[Date "2022.03.05"]
[Round "1.8"]
[White "Fedorovsky, Michael"]
[Black "Seyb, Alexander"]
[Result "1/2-1/2"]
[ECO "D85"]
[WhiteElo "2396"]
[BlackElo "2427"]
[Annotator "NA"]
[PlyCount "62"]
[EventDate "2022.03.05"]
[EventType "team-tourn"]
[EventCountry "GER"]
[SourceTitle "playchess.com"]
[Source "ChessBase"]
[SourceQuality "1"]
[TimeControl "40/5400+30:1800+30"]

1. d4 {[%emt 0:00:00]} Nf6 {[%emt 0:00:00]} 2. c4 {[%emt 0:00:00]} g6 {[%emt 0:00:00]} 3. Nc3 {[%emt 0:00:00]} d5 {[%emt 0:00:00]} 4. cxd5 {[%emt 0:00:00]} Nxd5 {[%emt 0:00:00]} 5. e4 {[%emt 0:00:00]} Nxc3 {[%emt 0:00:00]} 6. bxc3 {[%emt 0:00:00]} Bg7 {[%emt 0:00:00]} 7. Nf3 {[%emt 0:00:00]} c5 {[%emt 0:00:00]} 8. Be2 {[%emt 0:00:00]} O-O {[%emt 0:00:00]} 9. O-O {[%emt 0:00:00]} Bg4 {[%emt 0:36:49]} 10. Be3 {[%emt 0:00:00]} Qa5 {[%emt 0:16:48]} 11. Qb3 {[%emt 0:04:24]} cxd4 {[%emt 0:04:52]} 12. cxd4 {[%emt 0:00:40]} Nc6 {[%emt 0:00:06]} 13. Rad1 {[%emt 0:11:19]} e5 {[%emt 0:12:49]} 14. dxe5 {[%emt 0:23:59]} Qc7 {[%emt 0:00:52]} 15. Rb1 {[%emt 0:14:40]} Bxf3 {[%emt 0:09:01]} 16. gxf3 {[%emt 0:04:03]} Qxe5 {[%emt 0:01:11]} 17. Qxb7 {[%emt 0:07:29]} Nd4 {[%emt 0:00:14]} 18. Qa6 {[%emt 0:10:41]} Qh5 {[%emt 0:02:50]} 19. Kg2 {[%emt 0:09:08]} Be5 {[%emt 0:05:16]} 20. h4 {[%emt 0:01:49]} Rae8 {[%emt 0:02:18]} 21. Rh1 {[%emt 0:03:49]} Bg7 {[%emt 0:05:29]} 22. Bxd4 {[%emt 0:01:30]} Bxd4 {[%emt 0:00:12]} 23. Rb5 {[%emt 0:00:56]} Re5 {[%emt 0:00:47]} 24. a4 {[%emt 0:01:20]} Rxb5 {[%emt 0:01:07]} 25. Qxb5 {[%emt 0:00:13]} Qxb5 {[%emt 0:00:42]} 26. axb5 {[%emt 0:00:10]} Rc8 {[%emt 0:00:58]} 27. Rd1 {[%emt 0:01:59]} Be5 {[%emt 0:00:02]} 28. h5 {[%emt 0:03:44]} Kg7 {[%emt 0:00:36]} 29. hxg6 {[%emt 0:00:13]} hxg6 {[%emt 0:00:02]} 30. Rd7 {[%emt 0:00:40]} Rc7 {[%emt 0:00:22]} 31. Rxc7 {[%emt 0:01:21]} Bxc7 {[%emt 0:00:06]} 1/2-1/2

[Event "German Bundesliga 2021-22"]
[Site "Germany"]
[Date "2022.03.05"]
[Round "1.8"]
[White "Barseghyan, Armen Ar."]
[Black "Lamby, Philipp"]
[Result "1-0"]
[ECO "D38"]
[WhiteElo "2351"]
[BlackElo "2151"]
[Annotator "NA"]
[PlyCount "45"]
[EventDate "2022.03.05"]
[EventType "team-tourn"]
[EventCountry "GER"]
[SourceTitle "playchess.com"]
[Source "ChessBase"]
[SourceQuality "1"]
[TimeControl "40/5400+30:1800+30"]

1. d4 {[%emt 0:00:00]} Nf6 {[%emt 0:00:00]} 2. c4 {[%emt 0:00:00]} e6 {[%emt 0:00:00]} 3. Nf3 {[%emt 0:00:00]} d5 {[%emt 0:00:00]} 4. Nc3 {[%emt 0:00:00]} Bb4 {[%emt 0:00:00]} 5. cxd5 {[%emt 0:00:00]} exd5 {[%emt 0:00:00]} 6. Bf4 {[%emt 0:00:00]} O-O {[%emt 0:00:00]} 7. e3 {[%emt 0:00:00]} c5 {[%emt 0:03:18]} 8. dxc5 {[%emt 0:00:00]} Ne4 {[%emt 0:15:55]} 9. Rc1 {[%emt 0:00:00]} Bxc3+ {[%emt 0:21:05]} 10. bxc3 {[%emt 0:00:00]} Nxc5 {[%emt 0:00:09]} 11. Nd4 {[%emt 0:05:16]} Nc6 {[%emt 0:03:17]} 12. Be2 {[%emt 0:03:04]} Nxd4 {[%emt 0:06:22]} 13. cxd4 {[%emt 0:01:38]} Qa5+ {[%emt 0:00:43]} 14. Qd2 {[%emt 0:02:05]} Qxd2+ {[%emt 0:00:51]} 15. Kxd2 {[%emt 0:00:04]} Ne4+ {[%emt 0:00:55]} 16. Ke1 {[%emt 0:00:20]} g5 {[%emt 0:08:05]} 17. Be5 {[%emt 0:15:13]} f6 {[%emt 0:11:40]} 18. Bc7 {[%emt 0:01:58]} g4 {[%emt 0:09:02]} 19. f3 {[%emt 0:00:40]} gxf3 {[%emt 0:00:24]} 20. gxf3 {[%emt 0:00:03]} Ng5 {[%emt 0:00:09]} 21. Rg1 {[%emt 0:00:46]} Kf7 {[%emt 0:02:58]} 22. f4 {[%emt 0:00:50]} Nh3 {[%emt 0:05:30]} 23. Bh5+ {[%emt 0:00:30]} 1-0

[Event "German Bundesliga 2021-22"]
[Site "Germany"]
[Date "2022.03.05"]
[Round "1.8"]
[White "Heinemann, Josefine"]
[Black "Pitl, Jarno"]
[Result "1-0"]
[ECO "B01"]
[WhiteElo "2290"]
[BlackElo "1988"]
[Annotator "NA"]
[PlyCount "93"]
[EventDate "2022.03.05"]
[EventType "team-tourn"]
[EventCountry "GER"]
[SourceTitle "playchess.com"]
[Source "ChessBase"]
[SourceQuality "1"]
[TimeControl "40/5400+30:1800+30"]

1. e4 {[%emt 0:00:00]} d5 {[%emt 0:00:00]} 2. exd5 {[%emt 0:00:00]} Qxd5 {[%emt 0:00:00]} 3. Nc3 {[%emt 0:00:00]} Qd8 {[%emt 0:00:00]} 4. d4 {[%emt 0:00:00]} Nf6 {[%emt 0:00:00]} 5. Nf3 {[%emt 0:00:00]} Bg4 {[%emt 0:00:00]} 6. h3 {[%emt 0:00:00]} Bxf3 {[%emt 0:00:00]} 7. Qxf3 {[%emt 0:00:00]} c6 {[%emt 0:00:00]} 8. Be3 {[%emt 0:00:00]} e6 {[%emt 0:00:00]} 9. Bd3 {[%emt 0:00:21]} Nbd7 {[%emt 0:08:18]} 10. O-O {[%emt 0:04:44]} Qc7 {[%emt 0:03:30]} 11. a3 {[%emt 0:04:20]} Be7 {[%emt 0:04:48]} 12. Ne2 {[%emt 0:03:31]} Nd5 {[%emt 0:07:26]} 13. Bd2 {[%emt 0:03:30]} b5 {[%emt 0:07:57]} 14. c4 {[%emt 0:04:41]} bxc4 {[%emt 0:00:37]} 15. Bxc4 {[%emt 0:00:07]} N7b6 {[%emt 0:03:08]} 16. Ba6 {[%emt 0:05:38]} O-O {[%emt 0:11:44]} 17. Rac1 {[%emt 0:03:54]} Nd7 18. b4 {[%emt 0:07:35]} Qb6 {[%emt 0:09:18]} 19. Bd3 {[%emt 0:08:00]} Bf6 {[%emt 0:13:58]} 20. Rc2 {[%emt 0:07:05]} Rac8 {[%emt 0:04:18]} 21. Qe4 {[%emt 0:02:35]} g6 {[%emt 0:00:53]} 22. Rfc1 {[%emt 0:00:27]} Rc7 {[%emt 0:08:34]} 23. Bc4 {[%emt 0:05:21]} Bg7 {[%emt 0:03:33]} 24. Qd3 {[%emt 0:01:08]} Nb8 {[%emt 0:02:23]} 25. Bb3 {[%emt 0:07:08]} Rd8 {[%emt 0:04:38]} 26. Bg5 {[%emt 0:03:00]} Rdd7 {[%emt 0:01:35]} 27. Bh4 {[%emt 0:04:20]} Rb7 {[%emt 0:02:10]} 28. Bg3 {[%emt 0:01:37]} Ne7 {[%emt 0:00:38]} 29. Qe4 {[%emt 0:04:08]} Nf5 {[%emt 0:01:48]} 30. Bxb8 {[%emt 0:04:06]} Rxb8 {[%emt 0:00:01]} 31. Rxc6 {[%emt 0:00:14]} Qd8 {[%emt 0:00:21]} 32. d5 {[%emt 0:01:10]} Nd6 {[%emt 0:01:24]} 33. Qf3 {[%emt 0:01:56]} e5 {[%emt 0:00:01]} 34. Ba4 {[%emt 0:03:08]} Re7 {[%emt 0:01:23]} 35. Qe3 {[%emt 0:01:29]} e4 {[%emt 0:01:26]} 36. Nd4 {[%emt 0:02:33]} Nf5 {[%emt 0:01:31]} 37. Nxf5 {[%emt 0:00:15]} gxf5 {[%emt 0:00:02]} 38. d6 {[%emt 0:02:08]} Rd7 {[%emt 0:00:45]} 39. Qf4 {[%emt 0:04:26]} Bf8 {[%emt 0:01:05]} 40. Qxf5 {[%emt 0:03:35]} Rxd6 {[%emt 0:00:01]} 41. Rxd6 {[%emt 0:00:00]} Qxd6 {[%emt 0:00:00]} 42. Qxe4 {[%emt 0:00:00]} Rb6 {[%emt 0:00:00]} 43. Rc8 {[%emt 0:00:00]} Qh6 {[%emt 0:00:00]} 44. Bc6 {[%emt 0:00:00]} Qe6 {[%emt 0:08:16]} 45. Qxe6 {[%emt 0:00:00]} fxe6 {[%emt 0:00:02]} 46. b5 {[%emt 0:00:00]} a5 {[%emt 0:03:06]} 47. Ra8 {[%emt 0:01:08]} 1-0

[Event "German Bundesliga 2021-22"]
[Site "Germany"]
[Date "2022.03.05"]
[Round "1.11"]
[White "Richter, Michael"]
[Black "Martinovic, Sasa"]
[Result "0-1"]
[ECO "B51"]
[WhiteElo "2496"]
[BlackElo "2554"]
[Annotator "ChessBase"]
[PlyCount "80"]
[EventDate "2022.03.05"]
[EventType "team-tourn"]
[EventCountry "GER"]
[SourceTitle "playchess.com"]
[Source "ChessBase"]
[SourceQuality "1"]
[TimeControl "40/5400+30:1800+30"]

1. e4 {[%emt 0:00:00]} c5 {[%emt 0:00:00]} 2. Nf3 {[%emt 0:00:00]} d6 {[%emt 0:00:00]} 3. Bb5+ {[%emt 0:00:00]} Nd7 {[%emt 0:00:00]} 4. Ba4 {[%emt 0:00:00]} Ngf6 {[%emt 0:00:00]} 5. c4 {[%emt 0:00:00]} g6 {[%emt 0:00:00]} 6. Nc3 {[%emt 0:00:00]} Bg7 {[%emt 0:00:00]} 7. O-O {[%emt 0:00:00]} O-O {[%emt 0:00:00]} 8. d4 {[%emt 0:01:06]} cxd4 {[%emt 0:00:00]} 9. Nxd4 {[%emt 0:00:09]} Nb6 {[%emt 0:03:38]} 10. Bb3 {[%emt 0:01:11]} Nfd7 {[%emt 0:00:21]} 11. Bg5 {[%emt 0:08:57]} h6 {[%emt 0:08:39]} 12. Bh4 {[%emt 0:01:35]} Ne5 {[%emt 0:12:52]} 13. Rc1 {[%emt 0:09:43]} g5 {[%emt 0:13:44]} 14. Bg3 {[%emt 0:00:07]} Nbxc4 {[%emt 0:00:39]} 15. Nd5 {[%emt 0:21:08]} Nxb2 {[%emt 0:05:09]} 16. Qe2 {[%emt 0:12:36]} Nbd3 {[%emt 0:00:28]} 17. Rcd1 {[%emt 0:06:32]} e6 {[%emt 0:07:20]} 18. f4 {[%emt 0:13:42]} gxf4 {[%emt 0:15:51]} 19. Nxf4 {[%emt 0:00:41]} Nxf4 {[%emt 0:00:35]} 20. Bxf4 {[%emt 0:00:09]} Bd7 {[%emt 0:05:15]} 21. Kh1 {[%emt 0:01:07]} Qe7 {[%emt 0:07:46]} 22. Qh5 {[%emt 0:04:49]} Qf6 {[%emt 0:01:14]} 23. Bg3 {[%emt 0:08:16]} Qg5 {[%emt 0:01:16]} 24. Qe2 {[%emt 0:00:06]} a6 {[%emt 0:03:16]} 25. Nf3 {[%emt 0:01:42]} Qh5 {[%emt 0:04:03]} 26. a4 {[%emt 0:00:41]} Rad8 {[%emt 0:02:33]} 27. Rd2 {[%emt 0:02:59]} Bc6 {[%emt 0:02:06]} 28. Rfd1 {[%emt 0:01:44]} Nxf3 {[%emt 0:00:59]} 29. gxf3 {[%emt 0:00:08]} Be5 {[%emt 0:03:39]} 30. Rg1 {[%emt 0:02:19]} Kh7 {[%emt 0:00:11]} 31. Qd3 {[%emt 0:02:11]} Rg8 {[%emt 0:01:22]} 32. f4 {[%emt 0:01:31]} Qg6 {[%emt 0:01:58]} 33. Bc2 {[%emt 0:00:39]} Bxf4 {[%emt 0:00:26]} 34. Rdg2 {[%emt 0:01:02]} Bxg3 {[%emt 0:00:25]} 35. Rxg3 {[%emt 0:00:16]} Qh5 {[%emt 0:00:38]} 36. R1g2 {[%emt 0:00:46]} Qe5 {[%emt 0:01:03]} 37. Qf3 {[%emt 0:00:34]} f5 {[%emt 0:00:55]} 38. Qh5 {[%emt 0:00:30]} Qa1+ {[%emt 0:00:19]} 39. Rg1 {[%emt 0:00:26]} Qf6 {[%emt 0:00:08]} 40. R1g2 {[%emt 0:00:33]} Rxg3 {[%emt 0:00:31]} 0-1

[Event "German Bundesliga 2021-22"]
[Site "Germany"]
[Date "2022.03.05"]
[Round "1.11"]
[White "Orlov, Andrey"]
[Black "Engel, Luis"]
[Result "1/2-1/2"]
[ECO "B51"]
[WhiteElo "2490"]
[BlackElo "2564"]
[Annotator "ChessBase"]
[PlyCount "41"]
[EventDate "2022.03.05"]
[EventType "team-tourn"]
[EventCountry "GER"]
[SourceTitle "playchess.com"]
[Source "ChessBase"]
[SourceQuality "1"]
[TimeControl "40/5400+30:1800+30"]

1. e4 {[%emt 0:00:00]} c5 {[%emt 0:00:00]} 2. Nf3 {[%emt 0:00:00]} d6 {[%emt 0:00:00]} 3. Bb5+ {[%emt 0:00:00]} Nd7 {[%emt 0:00:00]} 4. O-O {[%emt 0:00:00]} a6 {[%emt 0:00:00]} 5. Bd3 {[%emt 0:00:00]} Ngf6 {[%emt 0:00:00]} 6. Re1 {[%emt 0:00:00]} e6 {[%emt 0:00:00]} 7. c3 {[%emt 0:00:00]} b5 {[%emt 0:00:00]} 8. a4 {[%emt 0:00:00]} b4 {[%emt 0:00:00]} 9. Bc2 {[%emt 0:07:31]} Be7 {[%emt 0:00:52]} 10. d4 {[%emt 0:02:27]} bxc3 {[%emt 0:03:34]} 11. bxc3 {[%emt 0:04:21]} cxd4 {[%emt 0:06:28]} 12. cxd4 {[%emt 0:00:46]} Bb7 {[%emt 0:01:00]} 13. Nbd2 {[%emt 0:10:25]} O-O {[%emt 0:07:17]} 14. Ba3 {[%emt 0:08:38]} Rc8 {[%emt 0:15:21]} 15. Bd3 {[%emt 0:06:03]} Rc3 {[%emt 0:09:16]} 16. Qe2 {[%emt 0:08:12]} Qa8 {[%emt 0:01:43]} 17. Bb4 {[%emt 0:08:57]} Rc6 {[%emt 0:07:56]} 18. d5 {[%emt 0:11:17]} exd5 {[%emt 0:03:42]} 19. e5 {[%emt 0:01:17]} Ne4 {[%emt 0:14:58]} 20. Nxe4 {[%emt 0:10:59]} dxe4 {[%emt 0:00:29]} 21. Bxe4 {[%emt 0:00:44]} 1/2-1/2

[Event "German Bundesliga 2021-22"]
[Site "Germany"]
[Date "2022.03.05"]
[Round "1.12"]
[White "Horvath, Dominik"]
[Black "Bruedigam, Martin"]
[Result "1/2-1/2"]
[ECO "C67"]
[WhiteElo "2483"]
[BlackElo "2386"]
[Annotator "ChessBase"]
[PlyCount "61"]
[EventDate "2022.03.05"]
[EventType "team-tourn"]
[EventCountry "GER"]
[SourceTitle "playchess.com"]
[Source "ChessBase"]
[SourceQuality "1"]
[TimeControl "40/5400+30:1800+30"]

1. e4 {[%emt 0:00:00]} e5 {[%emt 0:00:00]} 2. Nf3 {[%emt 0:00:00]} Nc6 {[%emt 0:00:00]} 3. Bb5 {[%emt 0:00:00]} Nf6 {[%emt 0:00:00]} 4. O-O {[%emt 0:00:00]} Nxe4 {[%emt 0:00:00]} 5. Re1 {[%emt 0:00:00]} Nd6 {[%emt 0:00:00]} 6. Ba4 {[%emt 0:00:00]} Be7 {[%emt 0:00:00]} 7. Nc3 {[%emt 0:00:35]} O-O {[%emt 0:00:00]} 8. d4 {[%emt 0:00:04]} e4 {[%emt 0:00:37]} 9. Nxe4 {[%emt 0:01:16]} Nxe4 {[%emt 0:00:42]} 10. Rxe4 {[%emt 0:00:05]} d5 {[%emt 0:00:48]} 11. Re1 {[%emt 0:00:09]} Na5 {[%emt 0:09:46]} 12. c3 {[%emt 0:09:21]} Bf5 {[%emt 0:02:52]} 13. Ne5 {[%emt 0:07:13]} c6 {[%emt 0:06:27]} 14. Qf3 {[%emt 0:05:31]} Bg6 {[%emt 0:24:20]} 15. Qg4 {[%emt 0:15:10]} Nc4 {[%emt 0:09:43]} 16. Nxg6 {[%emt 0:00:08]} hxg6 {[%emt 0:01:00]} 17. Bc2 {[%emt 0:01:02]} Re8 {[%emt 0:00:38]} 18. b3 {[%emt 0:21:32]} Nd6 {[%emt 0:01:05]} 19. g3 {[%emt 0:04:44]} Qc8 {[%emt 0:06:40]} 20. Qf3 {[%emt 0:01:22]} Bf8 {[%emt 0:04:10]} 21. Bd2 {[%emt 0:07:59]} Rxe1+ {[%emt 0:06:07]} 22. Rxe1 {[%emt 0:00:06]} Qh3 {[%emt 0:00:10]} 23. Bd3 {[%emt 0:01:55]} Re8 {[%emt 0:01:48]} 24. Rxe8 {[%emt 0:07:44]} Nxe8 {[%emt 0:00:04]} 25. Qg2 {[%emt 0:02:07]} Qg4 {[%emt 0:01:04]} 26. f3 {[%emt 0:00:06]} Qd7 {[%emt 0:01:17]} 27. h4 {[%emt 0:00:37]} Bd6 {[%emt 0:03:22]} 28. Kh2 {[%emt 0:03:03]} Nf6 {[%emt 0:02:03]} 29. Qe2 {[%emt 0:06:23]} Nh5 {[%emt 0:03:03]} 30. f4 {[%emt 0:02:51]} f5 {[%emt 0:02:26]} 31. Kg2 {[%emt 0:00:35]} 1/2-1/2

[Event "German Bundesliga 2021-22"]
[Site "Germany"]
[Date "2022.03.05"]
[Round "1.13"]
[White "Neef, Maximilian"]
[Black "Andersen, Mads"]
[Result "0-1"]
[ECO "A05"]
[WhiteElo "2504"]
[BlackElo "2570"]
[Annotator "ChessBase"]
[PlyCount "144"]
[EventDate "2022.03.05"]
[EventType "team-tourn"]
[EventCountry "GER"]
[SourceTitle "playchess.com"]
[Source "ChessBase"]
[SourceQuality "1"]
[TimeControl "40/5400+30:1800+30"]

1. Nf3 {[%emt 0:00:00]} Nf6 {[%emt 0:00:00]} 2. g3 {[%emt 0:00:00]} g6 {[%emt 0:00:00]} 3. b3 {[%emt 0:00:00]} Bg7 {[%emt 0:00:00]} 4. Bb2 {[%emt 0:00:00]} O-O {[%emt 0:00:00]} 5. Bg2 {[%emt 0:00:00]} d5 {[%emt 0:00:00]} 6. c4 {[%emt 0:00:00]} c6 {[%emt 0:00:00]} 7. O-O {[%emt 0:00:00]} b6 {[%emt 0:00:00]} 8. d4 {[%emt 0:00:00]} Bb7 {[%emt 0:00:00]} 9. Nc3 {[%emt 0:05:12]} e6 {[%emt 0:00:13]} 10. Qc2 {[%emt 0:08:18]} Nbd7 {[%emt 0:04:42]} 11. Rfd1 {[%emt 0:05:11]} Qc7 {[%emt 0:16:08]} 12. e4 {[%emt 0:07:14]} Nxe4 {[%emt 0:07:12]} 13. Nxe4 {[%emt 0:00:51]} dxe4 {[%emt 0:00:02]} 14. Qxe4 {[%emt 0:00:11]} c5 {[%emt 0:20:27]} 15. Qe2 {[%emt 0:02:03]} cxd4 {[%emt 0:00:24]} 16. Bxd4 {[%emt 0:18:35]} e5 {[%emt 0:06:03]} 17. Bc3 {[%emt 0:07:30]} Rfe8 {[%emt 0:01:58]} 18. Qb2 {[%emt 0:07:33]} Nc5 {[%emt 0:02:03]} 19. Rac1 {[%emt 0:09:51]} Ne4 {[%emt 0:08:47]} 20. Be1 {[%emt 0:01:27]} a5 {[%emt 0:00:15]} 21. Qc2 {[%emt 0:05:12]} Nc5 {[%emt 0:10:59]} 22. Bc3 {[%emt 0:02:33]} Rad8 {[%emt 0:06:27]} 23. Ne1 {[%emt 0:06:13]} h5 {[%emt 0:06:08]} 24. Rxd8 {[%emt 0:02:54]} Rxd8 {[%emt 0:00:34]} 25. Rd1 {[%emt 0:00:56]} e4 {[%emt 0:04:18]} 26. Bxg7 {[%emt 0:05:34]} Kxg7 {[%emt 0:00:10]} 27. Bf1 {[%emt 0:01:46]} Rxd1 {[%emt 0:03:32]} 28. Qxd1 {[%emt 0:00:02]} Qe5 {[%emt 0:00:13]} 29. Nc2 {[%emt 0:01:44]} Qc3 {[%emt 0:01:17]} 30. Ne3 {[%emt 0:03:50]} Nd3 {[%emt 0:00:21]} 31. h4 {[%emt 0:00:31]} Bc6 {[%emt 0:01:07]} 32. Qb1 {[%emt 0:00:36]} Qd2 {[%emt 0:00:58]} 33. Qc2 {[%emt 0:00:28]} Qe1 {[%emt 0:00:56]} 34. Nd5 {[%emt 0:00:40]} Qa1 {[%emt 0:01:38]} 35. Qc3+ {[%emt 0:00:31]} Qxc3 {[%emt 0:00:02]} 36. Nxc3 {[%emt 0:00:01]} Nc5 {[%emt 0:00:27]} 37. Be2 {[%emt 0:00:51]} Kf6 {[%emt 0:00:23]} 38. Kf1 {[%emt 0:00:30]} Ke5 {[%emt 0:00:25]} 39. Ke1 {[%emt 0:00:08]} f5 {[%emt 0:00:56]} 40. Kd2 {[%emt 0:00:59]} f4 {[%emt 0:00:44]} 41. gxf4+ {[%emt 0:00:00]} Kxf4 {[%emt 0:00:00]} 42. Bd1 {[%emt 0:00:00]} g5 {[%emt 0:08:15]} 43. Ne2+ {[%emt 0:03:57]} Kf3 {[%emt 0:03:15]} 44. Nd4+ {[%emt 0:01:46]} Kxf2 {[%emt 0:00:10]} 45. Bxh5 {[%emt 0:00:23]} gxh4 {[%emt 0:11:58]} 46. Nxc6 {[%emt 0:00:22]} Nd3 {[%emt 0:01:48]} 47. Bg4 {[%emt 0:12:45]} h3 {[%emt 0:01:03]} 48. Bxh3 {[%emt 0:00:11]} e3+ {[%emt 0:00:09]} 49. Kxd3 {[%emt 0:00:11]} e2 {[%emt 0:00:05]} 50. c5 {[%emt 0:06:22]} bxc5 {[%emt 0:02:04]} 51. Kc4 {[%emt 0:02:18]} e1=Q {[%emt 0:00:18]} 52. Bf5 {[%emt 0:00:31]} Qe2+ {[%emt 0:02:31]} 53. Kxc5 {[%emt 0:00:47]} Qxa2 {[%emt 0:00:13]} 54. Be6 {[%emt 0:01:03]} a4 {[%emt 0:01:20]} 55. Kb5 {[%emt 0:06:19]} a3 {[%emt 0:01:58]} 56. Bc4 {[%emt 0:00:50]} Qb1 {[%emt 0:01:01]} 57. b4 {[%emt 0:00:15]} Ke3 {[%emt 0:00:27]} 58. Kb6 {[%emt 0:00:10]} a2 {[%emt 0:01:20]} 59. Bxa2 {[%emt 0:00:06]} Qxa2 {[%emt 0:00:03]} 60. b5 {[%emt 0:00:08]} Qc4 {[%emt 0:00:34]} 61. Na5 {[%emt 0:01:49]} Qd5 {[%emt 0:00:43]} 62. Nc6 {[%emt 0:00:35]} Ke4 {[%emt 0:00:20]} 63. Ka6 {[%emt 0:00:14]} Qc5 {[%emt 0:00:32]} 64. Na7 {[%emt 0:00:16]} Qa3+ {[%emt 0:00:39]} 65. Kb7 {[%emt 0:00:06]} Qe7+ {[%emt 0:00:26]} 66. Kb8 {[%emt 0:01:01]} Qd6+ {[%emt 0:00:20]} 67. Kb7 {[%emt 0:00:16]} Qd7+ {[%emt 0:00:39]} 68. Kb8 {[%emt 0:00:21]} Kd5 {[%emt 0:00:24]} 69. b6 {[%emt 0:00:08]} Qd8+ {[%emt 0:00:31]} 70. Kb7 {[%emt 0:01:02]} Kc5 {[%emt 0:00:37]} 71. Nc8 {[%emt 0:00:11]} Qd7+ {[%emt 0:00:16]} 72. Kb8 {[%emt 0:00:06]} Kc6 {[%emt 0:00:11]} 0-1